bitfinex/quotes_SOLUSD_20250406
["timestamp","ask_amount","ask_price","bid_price","bid_amount"]
[1743898259796,18.933972,120.28,120.27,0.063]
[1743898260292,24.753672,120.28,120.27,0.063]
[1743898261800,24.89583357,120.28,120.27,0.063]
[1743898265609,18.933972,120.28,120.27,0.063]
[1743898269509,24.753672,120.28,120.27,0.063]
[1743898271693,24.89583357,120.28,120.27,0.063]
[1743898275487,44.89583357,120.28,120.27,0.063]
[1743898280399,69.85583357,120.28,120.27,0.063]
[1743898287719,264.61583357,120.28,120.27,0.063]
[1743898288304,239.37151043,120.28,120.27,0.063]
[1743898288818,239.513672,120.28,120.27,0.063]
[1743898289817,213.693972,120.28,120.27,0.063]
[1743898290525,219.513672,120.28,120.27,0.063]
[1743898291019,219.65583357,120.28,120.27,0.063]
[1743898291325,239.65583357,120.28,120.27,0.063]
[1743898295123,264.61583357,120.28,120.27,0.063]
[1743898301838,239.65583357,120.28,120.27,0.063]
[1743898305325,264.61583357,120.28,120.27,0.063]
[1743898313047,239.65583357,120.28,120.27,0.063]
[1743898315233,264.61583357,120.28,120.27,0.063]
[1743898317640,90.03613357,120.25,120.24,0.03]
[1743898317832,97.21613357,120.25,120.24,0.03]
[1743898318026,19.07613357,120.24,120.23,0.03]
[1743898318230,44.03613357,120.24,120.23,0.03]
[1743898318429,60.85093733,120.24,120.23,0.03]
[1743898319258,66.67253733,120.24,120.23,0.03]
[1743898324735,66.73553733,120.24,120.23,0.03]
[1743898326631,261.53553733,120.24,120.23,0.03]
[1743898327829,64.03613357,120.23,120.22,0.0001]
[1743898328048,80.85093733,120.23,120.22,0.0001]
[1743898328435,162.65093733,120.23,120.22,0.0001]
[1743898328958,168.47303733,120.23,120.22,0.0001]
[1743898329144,168.47303733,120.23,120.21,0.0001]
[1743898329145,19.07613357,120.22,120.21,0.0001]
[1743898329348,90.03613357,120.2,120.18,0.063]
[1743898329644,44.03613357,120.19,120.18,0.063]
[1743898329833,60.85093733,120.19,120.18,0.063]
[1743898330030,128.11015237,120.19,120.18,0.063]
[1743898330835,133.93425237,120.19,120.18,0.063]
[1743898332764,66.67503733,120.19,120.18,0.063]
[1743898333450,48.61071419,120.19,120.18,0.063]
[1743898334061,48.89503733,120.19,120.18,0.063]
[1743898334260,48.75287576,120.19,120.18,0.063]
[1743898334569,73.89503733,120.19,120.18,0.063]
[1743898334748,141.15425237,120.19,120.18,0.063]
[1743898343563,48.89503733,120.19,120.18,0.063]
[1743898344036,41.71503733,120.19,120.18,0.063]
[1743898346653,48.87503733,120.19,120.18,0.063]
[1743898346949,48.44855262,120.19,120.18,0.063]
[1743898347159,42.62445262,120.19,120.18,0.063]
[1743898347345,42.90877576,120.19,120.18,0.063]
[1743898347859,35.74877576,120.19,120.18,0.063]
[1743898348157,18.933972,120.19,120.18,0.063]
[1743898348542,18.64964886,120.19,120.18,0.063]
[1743898348749,194.9,120.2,120.18,16.87780376]
[1743898349459,18.933972,120.19,120.18,0.063]
[1743898349671,35.74877576,120.19,120.18,0.063]
[1743898350467,35.81177576,120.19,120.18,0.063]
[1743898351064,41.63587576,120.19,120.18,0.063]
[1743898351753,18.996972,120.19,120.18,0.063]
[1743898357172,35.81177576,120.19,120.18,0.063]
[1743898357371,41.63587576,120.19,120.18,0.063]
[1743898358775,35.81177576,120.19,120.18,0.063]
[1743898360071,18.996972,120.19,120.18,0.063]
[1743898360574,41.77803733,120.19,120.18,0.063]
[1743898361581,66.77803733,120.19,120.18,0.063]
[1743898361878,134.03725237,120.19,120.18,0.063]
[1743898365259,41.77803733,120.19,120.18,0.063]
[1743898365459,0.42648471,120.18,120.13,16.40780376]
[1743898365688,0.28432314,120.16,120.13,16.40780376]
[1743898365864,0.28432314,120.16,120.12,16.81480376]
[1743898373701,18.64964886,120.15,120.11,16.81480376]
[1743898374166,18.64964886,120.14,120.1,16.9293]
[1743898374365,18.64964886,120.14,120.1,33.74410376]
[1743898374902,18.64964886,120.14,120.11,16.81480376]
[1743898375071,16.81480376,120.15,120.11,16.81480376]
[1743898375512,18.64964886,120.14,120.11,16.81480376]
[1743898377300,18.64964886,120.11,120.1,0.03]
[1743898377614,17.0991269,120.11,120.1,0.03]
[1743898378402,35.74877576,120.11,120.1,0.03]
[1743898379080,41.57667576,120.11,120.1,0.03]
[1743898379807,35.74877576,120.11,120.1,0.03]
[1743898380400,18.64964886,120.11,120.1,0.03]
[1743898382894,41.57667576,120.11,120.1,0.03]
[1743898384798,18.933972,120.11,120.1,0.03]
[1743898385993,41.71883733,120.11,120.1,0.03]
[1743898386192,61.71883733,120.11,120.1,0.03]
[1743898387398,86.71883733,120.11,120.1,0.03]
[1743898388487,93.89883733,120.11,120.1,0.03]
[1743898389193,108.46873733,120.11,120.05,0.03]
[1743898389495,35.46445262,120.06,120.05,0.03]
[1743898389695,42.64445262,120.06,120.05,0.03]
[1743898390576,42.92877576,120.06,120.05,0.03]
[1743898393396,48.75917576,120.06,120.05,0.03]
[1743898396218,42.92877576,120.06,120.05,0.03]
[1743898398114,35.46445262,120.06,120.05,0.03]
[1743898398803,35.74877576,120.06,120.05,0.03]
[1743898399803,41.72133733,120.06,120.05,0.03]
[1743898401503,66.72133733,120.06,120.05,0.03]
[1743898404699,133.98055237,120.06,120.05,0.03]
[1743898404910,66.72133733,120.06,120.05,0.03]
[1743898405610,41.72133733,120.06,120.05,0.03]
[1743898405786,48.90133733,120.06,120.05,0.03]
[1743898406112,25.82964886,120.06,120.05,0.03]
[1743898406298,42.64445262,120.06,120.05,0.03]
[1743898406499,42.92877576,120.06,120.05,0.03]
[1743898406807,43.07093733,120.06,120.05,0.03]
[1743898408207,42.92877576,120.06,120.05,0.03]
[1743898410618,35.74877576,120.06,120.05,0.03]
[1743898421609,18.933972,120.06,120.05,0.03]
[1743898422409,35.74877576,120.06,120.05,0.03]
[1743898422921,41.57917576,120.06,120.05,0.03]
[1743898423820,18.933972,120.06,120.05,0.03]
[1743898426226,18.64964886,120.06,120.05,0.03]
[1743898426811,26.113972,120.08,120.05,0.03]
[1743898427012,42.92877576,120.08,120.05,0.03]
[1743898427519,18.64964886,120.06,120.05,0.03]
[1743898428123,16.81480376,120.06,120.05,0.03]
[1743898429130,35.46445262,120.06,120.05,0.03]
[1743898429303,41.57917576,120.06,120.05,0.03]
[1743898430028,35.74877576,120.06,120.05,0.03]
[1743898437835,18.933972,120.06,120.05,0.03]
[1743898438019,35.74877576,120.06,120.05,0.03]
[1743898438534,18.64964886,120.06,120.05,0.03]
[1743898441034,24.2791269,120.08,120.05,0.03]
[1743898441236,18.64964886,120.07,120.05,0.03]
[1743898442035,16.81480376,120.07,120.05,0.03]
[1743898442518,16.81480376,120.06,120.05,0.03]
[1743898442723,35.46445262,120.06,120.05,0.03]
[1743898442914,18.64964886,120.06,120.05,0.03]
[1743898443109,35.74877576,120.06,120.05,0.03]
[1743898446520,41.57917576,120.06,120.05,0.03]
[1743898447648,35.74877576,120.06,120.05,0.03]
[1743898448321,41.57917576,120.06,120.05,0.03]
[1743898449741,35.74877576,120.06,120.05,0.03]
[1743898450637,41.57917576,120.06,120.05,0.03]
[1743898451019,35.74877576,120.06,120.05,0.03]
[1743898451439,41.57917576,120.06,120.05,0.03]
[1743898452515,35.74877576,120.06,120.05,0.03]
[1743898453031,41.57917576,120.06,120.05,0.03]
[1743898453615,35.74877576,120.06,120.05,0.03]
[1743898454134,18.933972,120.06,120.05,0.03]
[1743898455440,35.74877576,120.06,120.05,0.03]
[1743898455631,18.933972,120.06,120.05,0.03]
[1743898456130,35.74877576,120.06,120.05,0.03]
[1743898461928,18.933972,120.06,120.05,0.03]
[1743898462435,18.64964886,120.07,120.05,0.03]
[1743898465155,35.46445262,120.07,120.05,0.03]
[1743898465956,41.29445262,120.07,120.05,0.03]
[1743898467955,35.46445262,120.07,120.05,0.03]
[1743898469061,18.64964886,120.07,120.05,0.03]
[1743898469248,35.46445262,120.07,120.05,0.03]
[1743898471457,35.46445262,120.06,120.05,0.03]
[1743898474362,18.64964886,120.06,120.05,0.03]
[1743898474558,35.46445262,120.06,120.05,0.03]
[1743898480958,18.64964886,120.06,120.05,0.03]
[1743898487554,35.46445262,120.06,120.05,0.03]
[1743898488457,35.74877576,120.06,120.05,0.03]
[1743898488677,41.57917576,120.06,120.05,0.03]
[1743898490686,48.73917576,120.06,120.05,0.03]
[1743898491493,243.81917576,120.06,120.05,0.03]
[1743898492587,243.96133733,120.06,120.05,0.03]
[1743898495393,336.22055237,120.06,120.05,0.03]
[1743898495989,268.96133733,120.06,120.05,0.03]
[1743898498296,243.96133733,120.06,120.05,0.03]
[1743898498465,236.65917576,120.06,120.05,0.03]
[1743898498665,237.70445262,120.06,120.05,0.03]
[1743898498877,230.54445262,120.06,120.05,0.03]
[1743898499082,230.82877576,120.06,120.05,0.03]
[1743898500603,211.89480376,120.06,120.05,0.03]
[1743898500793,213.72964886,120.06,120.05,0.03]
[1743898502503,230.82877576,120.06,120.05,0.03]
[1743898504980,195.08,120.06,120.05,0.03]
[1743898505895,16.81480376,120.07,120.05,0.03]
[1743898508502,18.64964886,120.06,120.05,0.03]
[1743898512114,35.46445262,120.06,120.05,0.03]
[1743898512312,16.81480376,120.06,120.05,0.03]
[1743898512499,18.64964886,120.06,120.05,0.03]
[1743898516720,18.64964886,120.07,120.05,0.03]
[1743898518727,35.46445262,120.08,120.05,0.03]
[1743898518911,195.08,120.09,120.05,16.84480376]
[1743898519228,18.64964886,120.08,120.05,16.84480376]
[1743898521942,195.08,120.09,120.07,16.81480376]
[1743898522150,0.063,120.1,120.08,16.81480376]
[1743898523725,0.063,120.1,120.08,26.0]
[1743898524543,18.71264886,120.1,120.06,16.81480376]
[1743898524728,16.87780376,120.1,120.06,16.81480376]
[1743898524928,35.52745262,120.1,120.05,16.84480376]
[1743898525446,35.46445262,120.09,120.05,0.03]
[1743898525633,16.81480376,120.08,120.05,0.03]
[1743898527340,16.81480376,120.07,120.05,0.03]
[1743898527734,35.46445262,120.07,120.05,0.03]
[1743898527934,16.81480376,120.08,120.05,0.03]
[1743898528130,18.64964886,120.08,120.05,16.84480376]
[1743898528743,18.64964886,120.08,120.05,0.03]
[1743898528947,35.46445262,120.08,120.05,0.03]
[1743898529141,18.64964886,120.08,120.05,0.03]
[1743898529846,35.46445262,120.08,120.05,0.03]
[1743898530343,16.81480376,120.07,120.05,0.03]
[1743898530726,35.46445262,120.06,120.05,0.03]
[1743898531558,41.57917576,120.06,120.05,0.03]
[1743898532253,41.72133733,120.06,120.05,0.03]
[1743898532435,74.56903733,120.06,120.05,0.03]
[1743898532641,141.82825237,120.06,120.05,0.03]
[1743898534473,48.59647576,120.06,120.05,0.03]
[1743898534763,35.74877576,120.06,120.05,0.03]
[1743898536158,41.57917576,120.06,120.05,0.03]
[1743898548171,41.72133733,120.06,120.05,0.03]
[1743898549272,108.98055237,120.06,120.05,0.03]
[1743898550773,24.90653357,120.06,120.05,0.03]
[1743898550974,18.64964886,120.06,120.05,0.03]
[1743898552078,35.46445262,120.06,120.05,0.03]
[1743898555279,18.64964886,120.06,120.05,0.03]
[1743898556077,35.46445262,120.06,120.05,0.03]
[1743898558391,18.64964886,120.06,120.05,0.03]
[1743898558562,16.81480376,120.07,120.05,0.03]
[1743898561585,219.823472,120.08,120.05,0.03]
[1743898561770,35.46445262,120.07,120.05,0.03]
[1743898561963,212.1591269,120.08,120.05,0.03]
[1743898562164,195.06,120.08,120.05,0.03]
[1743898562363,195.06,120.08,120.06,16.81480376]
[1743898562784,195.06,120.08,120.05,16.84480376]
[1743898562973,195.06,120.08,120.06,16.81480376]
[1743898564780,0.063,120.1,120.06,16.81480376]
[1743898564960,0.063,120.1,120.07,16.81480376]
[1743898565590,0.063,120.1,120.08,16.81480376]
[1743898566391,0.063,120.1,120.07,16.81480376]
[1743898568288,0.063,120.1,120.08,42.81480376]
[1743898568873,0.063,120.1,120.08,26.0]
[1743898569191,0.063,120.1,120.06,21.36850376]
[1743898571893,18.71264886,120.1,120.06,21.36850376]
[1743898572097,35.52745262,120.1,120.06,4.5537]
[1743898572300,18.71264886,120.1,120.06,4.5537]
[1743898572478,18.71264886,120.1,120.05,16.84480376]
[1743898572678,35.52745262,120.1,120.05,16.84480376]
[1743898572874,16.87780376,120.1,120.05,16.84480376]
[1743898573496,35.52745262,120.1,120.05,16.84480376]
[1743898573691,18.71264886,120.1,120.06,16.81480376]
[1743898573998,18.71264886,120.1,120.05,0.03]
[1743898573999,18.64964886,120.07,120.05,0.03]
[1743898574378,16.81480376,120.08,120.05,0.03]
[1743898577601,16.81480376,120.09,120.05,0.03]
[1743898581102,0.28432314,120.09,120.05,16.84480376]
[1743898581309,17.0991269,120.09,120.05,16.84480376]
[1743898581680,17.0991269,120.09,120.05,0.03]
[1743898583879,16.81480376,120.08,120.05,0.03]
[1743898587912,17.0991269,120.09,120.05,0.03]
[1743898588107,18.64964886,120.08,120.05,0.03]
[1743898588792,18.64964886,120.09,120.05,16.84480376]
[1743898589088,0.063,120.1,120.07,16.81480376]
[1743898589694,0.063,120.1,120.08,16.81480376]
[1743898590295,0.063,120.1,120.07,16.81480376]
[1743898590997,0.063,120.1,120.06,16.81480376]
[1743898600118,0.063,120.1,120.07,16.81480376]
[1743898601021,0.063,120.1,120.08,16.81480376]
[1743898604026,0.063,120.1,120.07,16.81480376]
[1743898605196,0.063,120.1,120.06,0.03]
[1743898605411,0.063,120.1,120.07,16.81480376]
[1743898605591,0.063,120.1,120.06,0.03]
[1743898605797,16.81480376,120.09,120.06,0.03]
[1743898606022,35.46445262,120.09,120.06,0.03]
[1743898606397,35.46445262,120.08,120.06,0.03]
[1743898610128,18.64964886,120.08,120.06,0.03]
[1743898614417,16.81480376,120.09,120.06,0.03]
[1743898614804,18.64964886,120.08,120.06,0.03]
[1743898618827,18.64964886,120.09,120.06,0.03]
[1743898619031,18.64964886,120.09,120.06,16.84480376]
[1743898619232,18.71264886,120.1,120.06,16.84480376]
[1743898619837,0.063,120.1,120.07,16.81480376]
[1743898620412,0.063,120.1,120.06,24.00480376]
[1743898620711,16.81480376,120.09,120.06,7.19]
[1743898620922,35.46445262,120.08,120.06,0.03]
[1743898621122,0.34732314,120.1,120.06,0.03]
[1743898621328,16.81480376,120.09,120.06,0.03]
[1743898623829,18.64964886,120.08,120.06,0.03]
[1743898625133,16.81480376,120.08,120.06,0.03]
[1743898626340,16.81480376,120.09,120.06,0.03]
[1743898630240,16.81480376,120.08,120.06,0.03]
[1743898633844,16.81480376,120.09,120.06,0.03]
[1743898637355,18.64964886,120.08,120.06,0.03]
[1743898639160,35.46445262,120.08,120.06,0.03]
[1743898640565,18.64964886,120.08,120.06,0.03]
[1743898640763,0.063,120.1,120.06,0.03]
[1743898640941,18.64964886,120.08,120.06,0.03]
[1743898642164,59.63103733,120.07,120.06,0.03]
[1743898642344,0.42648471,120.05,119.99,25.71357764]
[1743898642660,35.74877576,120.01,119.99,25.71357764]
[1743898643234,41.58157576,120.01,119.99,25.71357764]
[1743898643738,41.72373733,120.01,119.99,25.71357764]
[1743898644641,24.90943357,120.0,119.99,0.03]
[1743898644835,41.72423733,120.0,119.99,0.03]
[1743898645035,143.56675237,120.0,119.94,0.03]
[1743898645258,84.0740188,119.98,119.94,0.03]
[1743898645440,91.2340188,119.98,119.94,0.03]
[1743898646659,97.0683188,119.98,119.94,0.03]
[1743898647169,116.14445237,119.98,119.94,0.03]
[1743898650564,16.81480376,119.95,119.94,0.03]
[1743898650761,35.74877576,119.95,119.94,0.03]
[1743898650950,41.58447576,119.95,119.94,0.03]
[1743898653674,236.88663733,119.95,119.94,0.03]
[1743898656578,19.07613357,119.94,119.88,0.03]
[1743898656754,16.81480376,119.9,119.88,0.03]
[1743898657378,16.81480376,119.89,119.88,0.03]
[1743898659881,23.97480376,119.89,119.88,0.03]
[1743898660562,42.90877576,119.89,119.88,0.03]
[1743898662172,48.74737576,119.89,119.88,0.03]
[1743898663861,42.90877576,119.89,119.88,0.03]
[1743898664977,68.88953733,119.89,119.88,0.03]
[1743898665473,42.90877576,119.89,119.88,0.03]
[1743898665656,35.74877576,119.89,119.88,0.03]
[1743898669684,23.97480376,119.9,119.88,0.03]
[1743898670601,35.46445262,119.91,119.88,0.03]
[1743898670967,35.46445262,119.91,119.86,16.81480376]
[1743898671172,16.81480376,119.91,119.87,21.36760376]
[1743898671377,212.13480376,119.92,119.87,21.36760376]
[1743898672166,212.13480376,119.92,119.88,0.03]
[1743898673202,16.81480376,119.91,119.88,0.03]
[1743898678180,16.81480376,119.9,119.88,0.03]
[1743898678815,35.46445262,119.91,119.88,0.03]
[1743898683196,16.81480376,119.9,119.88,0.03]
[1743898684809,16.81480376,119.89,119.88,0.03]
[1743898685702,5.8382,119.9,119.88,0.03]
[1743898685907,16.81480376,119.89,119.88,0.03]
[1743898686707,16.81480376,119.89,119.84,21.44940376]
[1743898689499,18.933972,119.91,119.84,21.44940376]
[1743898689704,35.74877576,119.91,119.86,16.81480376]
[1743898690215,195.32,119.92,119.87,16.81480376]
[1743898690415,195.32,119.92,119.88,42.81480376]
[1743898690997,212.13480376,119.92,119.88,26.0]
[1743898692808,195.32,119.92,119.88,26.0]
[1743898693000,212.13480376,119.92,119.88,26.0]
[1743898696310,16.81480376,119.91,119.88,26.0]
[1743898697487,35.74877576,119.9,119.85,16.81480376]
[1743898697687,16.81480376,119.89,119.84,21.47098676]
[1743898698107,16.81480376,119.88,119.84,21.47098676]
[1743898698517,11.9496,119.91,119.87,16.81480376]
[1743898698726,28.76440376,119.91,119.87,16.81480376]
[1743898699013,35.81177576,119.92,119.87,16.81480376]
[1743898700303,35.81177576,119.92,119.86,26.0]
[1743898700509,35.81177576,119.92,119.87,16.81480376]
[1743898702525,18.996972,119.92,119.87,16.81480376]
[1743898703519,35.81177576,119.92,119.87,16.81480376]
[1743898704122,35.81177576,119.92,119.86,42.81480376]
[1743898705018,18.996972,119.92,119.86,42.81480376]
[1743898705325,35.81177576,119.92,119.87,16.81480376]
[1743898705922,18.996972,119.92,119.87,16.81480376]
[1743898706106,35.81177576,119.92,119.87,16.81480376]
[1743898707223,16.87780376,119.92,119.87,16.81480376]
[1743898707723,0.063,119.92,119.87,16.81480376]
[1743898707927,0.063,119.92,119.88,16.81480376]
[1743898708319,0.063,119.92,119.9,16.81480376]
[1743898708501,0.063,119.92,119.91,16.81480376]
[1743898718434,0.063,119.92,119.91,16.95696533]
[1743898721524,0.063,119.92,119.91,84.21618037]
[1743898722523,0.063,119.92,119.91,16.95696533]
[1743898723739,0.063,119.92,119.91,16.81480376]
[1743898727823,0.063,119.92,119.91,16.95696533]
[1743898735865,0.063,119.92,119.91,16.81480376]
[1743898742748,0.063,119.92,119.91,16.95696533]
[1743898745173,0.063,119.92,119.91,84.21618037]
[1743898750661,0.063,119.92,119.91,16.95696533]
[1743898752078,0.063,119.92,119.91,84.21618037]
[1743898752281,14.60747111,119.94,119.93,43.45696533]
[1743898752579,0.063,119.94,119.93,43.45696533]
[1743898754041,0.063,119.97,119.93,43.74128847]
[1743898754244,0.063,119.97,119.96,42.81480376]
[1743898764958,0.063,119.97,119.96,42.95696533]
[1743898767661,0.063,119.97,119.96,26.0]
[1743898767871,0.063,119.97,119.96,42.81480376]
[1743898768463,0.063,119.97,119.96,43.24128847]
[1743898768688,4.7291,120.03,120.0,16.81480376]
[1743898769084,4.7291,120.03,120.01,16.81480376]
[1743898769968,13.0641,120.04,120.02,42.81480376]
[1743898772990,0.063,120.04,120.03,16.81480376]
[1743898775999,0.063,120.04,120.03,16.95696533]
[1743898776166,0.063,120.04,120.03,24.11696533]
[1743898778499,0.063,120.04,120.03,23.97480376]
[1743898778706,0.063,120.04,120.03,7.16]
[1743898779314,0.063,120.04,120.03,23.97480376]
[1743898780699,0.063,120.04,120.03,7.16]
[1743898783512,0.063,120.04,120.01,16.81480376]
[1743898784010,0.063,120.04,120.0,7.14]
[1743898784212,0.063,120.04,120.01,16.81480376]
[1743898787709,0.063,120.04,120.02,16.81480376]
[1743898788102,12.1956,120.04,120.0,16.81480376]
[1743898788909,12.1956,120.04,120.01,16.81480376]
[1743898789308,0.063,120.04,120.03,16.81480376]
[1743898796218,0.063,120.04,120.02,7.14]
[1743898796407,0.063,120.04,120.03,16.81480376]
[1743898797915,0.063,120.04,120.03,16.95696533]
[1743898801426,0.063,120.04,120.03,17.24128847]
[1743898802326,0.063,120.04,120.03,35.89093733]
[1743898803724,0.063,120.04,120.03,17.24128847]
[1743898806826,0.063,120.04,120.03,35.89093733]
[1743898809326,0.063,120.04,120.03,36.39093733]
[1743898810514,0.063,120.04,120.03,19.57613357]
[1743898810735,0.063,120.04,120.03,35.89093733]
[1743898816242,0.063,120.04,120.03,43.03093733]
[1743898816738,0.063,120.04,120.03,24.38128847]
[1743898816928,0.063,120.04,120.03,43.03093733]
[1743898817540,0.063,120.04,120.03,24.38128847]
[1743898818841,0.063,120.04,120.0,0.5]
[1743898819025,0.063,120.04,120.0,23.95480376]
[1743898822619,4.7208,120.03,120.02,26.0]
[1743898823140,12.45,120.02,120.0,7.14]
[1743898823359,12.45,120.02,120.01,26.0]
[1743898824743,4.7208,120.03,120.02,26.0]
[1743898824921,4.7208,120.03,120.01,42.81480376]
[1743898825743,4.7208,120.03,120.01,26.0]
[1743898826825,4.7208,120.03,120.01,42.81480376]
[1743898828146,4.7208,120.03,120.02,16.81480376]
[1743898828445,0.063,120.04,120.03,26.0]
[1743898828618,0.063,120.04,120.03,42.81480376]
[1743898828942,0.063,120.04,120.03,16.81480376]
[1743898836148,0.063,120.04,120.03,16.95696533]
[1743898836748,0.063,120.04,120.03,17.24128847]
[1743898836949,0.063,120.04,120.03,17.74128847]
[1743898838252,0.063,120.04,120.03,36.39093733]
[1743898839254,0.063,120.06,120.05,26.78432314]
[1743898839552,0.063,120.06,120.05,110.85834194]
[1743898840459,0.063,120.06,120.05,43.5991269]
[1743898843948,0.063,120.06,120.05,129.65015237]
[1743898844649,0.063,120.06,120.05,111.00050351]
[1743898844975,0.063,120.06,120.05,129.65015237]
[1743898845943,0.063,120.1,120.07,0.78432314]
[1743898846142,0.063,120.1,120.09,16.95696533]
[1743898849068,0.063,120.1,120.09,17.45696533]
[1743898850960,0.063,120.1,120.09,16.95696533]
[1743898853467,0.063,120.1,120.09,17.24128847]
[1743898853882,0.063,120.13,120.12,26.14216157]
[1743898854181,0.063,120.13,120.12,117.64050351]
[1743898855055,0.063,120.13,120.12,50.38128847]
[1743898855473,0.063,120.13,120.12,53.44685865]
[1743898855975,0.063,120.13,120.12,53.16253551]
[1743898858681,0.063,120.13,120.12,53.44685865]
[1743898859274,0.063,120.13,120.12,72.09650751]
[1743898859467,0.063,120.13,120.12,139.35572255]
[1743898859672,0.063,120.17,120.16,16.81480376]
[1743898860176,0.063,120.17,120.16,16.95696533]
[1743898860483,0.063,120.17,120.16,24.38128847]
[1743898860897,0.063,120.17,120.16,24.09696533]
[1743898861184,0.063,120.17,120.16,27.15501583]
[1743898861988,0.063,120.17,120.16,24.09696533]
[1743898865787,0.063,120.17,120.16,23.95480376]
[1743898869174,0.063,120.19,120.18,26.0]
[1743898869371,0.063,120.19,120.18,43.0991269]
[1743898869577,0.063,120.19,120.18,43.24128847]
[1743898869787,0.063,120.19,120.18,61.89093733]
[1743898870097,0.063,120.19,120.18,132.69939616]
[1743898870394,0.063,120.23,120.19,0.14216157]
[1743898870596,0.063,120.23,120.22,42.81480376]
[1743898872208,0.063,120.23,120.22,43.24128847]
[1743898872796,0.063,120.23,120.22,46.28366082]
[1743898874411,0.063,120.23,120.22,45.99933768]
[1743898875194,0.063,120.23,120.22,42.81480376]
[1743898876724,0.063,120.23,120.22,42.95696533]
[1743898877094,0.063,120.23,120.22,43.24128847]
[1743898877406,4.4529,120.22,120.15,0.14216157]
[1743898877621,21.26770376,120.22,120.17,16.81480376]
[1743898877926,4.4529,120.22,120.2,26.0]
[1743898878211,4.4529,120.22,120.18,16.81480376]
[1743898878715,4.4529,120.22,120.18,23.95480376]
[1743898880320,4.4529,120.22,120.19,16.84480376]
[1743898880613,0.063,120.23,120.21,42.81480376]
[1743898880994,0.063,120.23,120.22,16.81480376]
[1743898881606,0.063,120.23,120.22,24.38128847]
[1743898882200,0.063,120.23,120.22,46.07929299]
[1743898882698,0.063,120.23,120.22,46.57929299]
[1743898883334,0.063,120.23,120.22,46.07929299]
[1743898883919,0.063,120.23,120.22,55.50220437]
[1743898886007,0.063,120.23,120.22,36.85255551]
[1743898888520,0.063,120.23,120.22,10.61484037]
[1743898888823,0.063,120.23,120.22,62.56823237]
[1743898889117,0.063,120.23,120.22,26.0]
[1743898889333,0.063,120.23,120.22,33.37771514]
[1743898890427,0.063,120.23,120.22,7.14]
[1743898890602,0.063,120.23,120.21,52.23771514]
[1743898890931,0.063,120.23,120.21,33.14]
[1743898891402,0.063,120.23,120.21,59.37771514]
[1743898894124,0.063,120.23,120.22,29.2948743]
[1743898894320,0.063,120.23,120.22,29.43703587]
[1743898896637,0.063,120.23,120.22,29.2948743]
[1743898896806,0.063,120.23,120.22,3.05715916]
[1743898898116,0.063,120.23,120.22,29.2948743]
[1743898899222,0.063,120.23,120.22,29.45854987]
[1743898901352,0.063,120.23,120.22,29.3163883]
[1743898901538,0.063,120.23,120.22,3.07867316]
[1743898908355,0.063,120.23,120.22,29.07867316]
[1743898908572,0.063,120.23,120.22,3.07867316]
[1743898908857,17.6981,120.23,120.22,29.07867316]
[1743898915378,0.063,120.23,120.22,46.02550469]
[1743898918692,0.063,120.23,120.22,29.07867316]
[1743898918977,0.063,120.23,120.22,3.07867316]
[1743898919503,0.063,120.23,120.22,29.07867316]
[1743898921956,26.32072156,120.23,120.22,3.07867316]
[1743898922648,0.063,120.23,120.22,3.07867316]
[1743898924885,26.32072156,120.23,120.22,3.07867316]
[1743898925568,43.29332156,120.23,120.22,3.07867316]
[1743898926053,49.11542156,120.23,120.22,3.07867316]
[1743898926457,49.11542156,120.23,120.22,0.021514]